Workbook

Sheet ------ (hidden)

Sheet VXXXXX (hidden)

Sheet 과징현황
G1: 2013년 10월분 지방세 징수실적 보고서 (2013 회계)
R4: (단위 : 천원)
A5: 구 분 | E5: 목 표액 (예산액) | G5: 부 과 액 | I5: 징 수 액 | K5: 불납결손액 | M5: 미 수 납 액 | N5: 징 수 비 율 | Q5: 과오납 환부액
E6: 당 초 | F6: 최 종 | G6: 본월분 | H6: 누 계 | I6: 본월분 | J6: 누 계 | K6: 본월분 | L6: 누 계 | N6: 대목표 (당초) | O6: 대목표 (최종) | P6: 대부과 | Q6: 본월분 | R6: 누 계
A7: 총 괄 | B7: 합 계 | E7: =SUM(E8:E9) -> 252,860,000 | F7: 257,751,000 | G7: =SUM(G8:G9) -> 15,297,387 | H7: 255,252,689 | I7: 17,075,050 | J7: =SUM(J8:J9) -> 239,939,914 | K7: 0 | L7: 1,927,135 | M7: 13,385,640 | N7: =+J7/E7*100 -> 94.9 | O7: =+J7/F7*100 -> 93.1 | P7: =+J7/H7*100 -> 94.0 | Q7: =SUM(Q8:Q9) -> 554,361 | R7: =SUM(R8:R9) -> 5,860,823
B8: 도 세 | E8: =E11+E46+E47 -> 92,460,000 | F8: =F11+F46+F47 -> 92,460,000 | G8: 7,025,414 | H8: 87,181,640 | I8: 7,320,102 | J8: 83,402,585 | K8: 0 | L8: 483,971 | M8: 3,295,084 | N8: 90.2 | O8: 90.2 | P8: 95.7 | Q8: =Q11+Q46+Q47 -> 40,921 | R8: =R11+R46+R47 -> 2,192,162
B9: 시 군 세 | E9: =E31+E48 -> 160,400,000 | F9: =F31+F48 -> 165,291,000 | G9: 8,271,973 | H9: 168,071,049 | I9: 9,754,948 | J9: 156,537,329 | K9: 0 | L9: 1,443,164 | M9: 10,090,556 | N9: 97.6 | O9: 94.7 | P9: 93.1 | Q9: =Q31+Q48 -> 513,440 | R9: =R31+R48 -> 3,668,661
A10: 현 년 도 | B10: 계 | E10: =SUM(E11,E31) -> 251,130,000 | F10: =SUM(F11,F31) -> 256,021,000 | G10: 15,306,963 | H10: 243,475,742 | I10: 17,034,788 | J10: 238,693,850 | K10: 0 | L10: 5,256 | M10: 4,776,636 | N10: 95.0 | O10: 93.2 | P10: 98.0 | Q10: =SUM(Q11,Q31) -> 507,888 | R10: =SUM(R11,R31) -> 2,914,051
B11: 도 세 | C11: 소 계 | E11: =SUM(E12,E13,E16,E19:E23,E24) -> 91,730,000 | F11: =SUM(F12,F13,F16,F19:F23,F24) -> 91,730,000 | G11: 7,016,807 | H11: 82,571,225 | I11: 7,297,692 | J11: 81,670,917 | K11: 0 | L11: 91 | M11: 900,217 | N11: 89.0 | O11: 89.0 | P11: 98.9 | Q11: =SUM(Q12,Q13,Q16,Q19:Q23,Q24) -> 38,747 | R11: =SUM(R12,R13,R16,R19:R23,R24) -> 1,907,598
C12: 취 득 세 | E12: 58,700,000 | F12: 58,700,000 | G12: 5,550,980 | H12: 51,565,043 | I12: 5,563,003 | J12: 51,353,339 | M12: =H12-J12-L12 -> 211,704 | N12: 87.5 | O12: 87.5 | P12: 99.6 | Q12: 33,808 | R12: 1,682,503
C13: 등 록 면허세 | D13: 소 계 | E13: =SUM(E14:E15) -> 5,320,000 | F13: 5,320,000 | G13: 313,176 | H13: 6,458,722 | I13: 314,507 | J13: 6,436,834 | K13: 0 | L13: 91 | M13: 21,797 | N13: 121.0 | O13: 121.0 | P13: 99.7 | Q13: =SUM(Q14:Q15) -> 104 | R13: =SUM(R14:R15) -> 26,045
D14: 등록분 | E14: 4,827,000 | F14: 4,827,000 | G14: 301,568 | H14: 5,811,794 | I14: 301,568 | J14: 5,811,789 | M14: =H14-J14-L14 -> 5 | N14: 120.4 | O14: 120.4 | P14: 100.0 | Q14: 104 | R14: 24,560
D15: 면허분 | E15: 493,000 | F15: 493,000 | G15: 11,608 | H15: 646,928 | I15: 12,939 | J15: 625,045 | L15: 91 | M15: =H15-J15-L15 -> 21,792 | N15: 126.8 | O15: 126.8 | P15: 96.6 | Q15: 0 | R15: 1,485
C16: 지 역 자 원 시설세 | D16: 소 계 | E16: =SUM(E17:E18) -> 5,260,000 | F16: =SUM(F17:F18) -> 5,260,000 | G16: =SUM(G17:G18) -> 15,012 | H16: =SUM(H17:H18) -> 6,067,374 | I16: 53,096 | J16: 5,902,065 | K16: 0 | L16: 0 | M16: 165,309 | N16: 112.2 | O16: 112.2 | P16: 97.3 | Q16: =SUM(Q17:Q18) -> 0 | R16: =SUM(R17:R18) -> 70
D17: 특정자원 | E17: 55,000 | F17: 55,000 | G17: 13,112 | H17: 53,856 | I17: 12,009 | J17: 52,285 | M17: =H17-J17-L17 -> 1,571 | N17: 95.1 | O17: 95.1 | P17: 97.1 | Q17: 0 | R17: 0
D18: 특정부동산 | E18: 5,205,000 | F18: 5,205,000 | G18: 1,900 | H18: 6,013,518 | I18: 41,087 | J18: 5,849,780 | M18: 163,738 | N18: 112.4 | O18: 112.4 | P18: 97.3 | Q18: 0 | R18: 70
C19: 지방소비세 | M19: 0
C20: 등 록 세 | G20: 7,697 | H20: 256,025 | I20: 9,444 | J20: 255,609 | M20: 416 | P20: 99.8 | Q20: 261 | R20: 1,702
C21: 면 허 세 | M21: 0
C22: 공동시설세 | G22: 0 | H22: 6,079 | I22: 0 | J22: 6,079 | M22: 0 | P22: 100.0
C23: 지역개발세 | M23: 0
C24: 지 방 교 육 세 | D24: 소 계 | E24: =SUM(E25:E30) -> 22,450,000 | F24: =SUM(F25:F30) -> 22,450,000 | G24: 1,129,942 | H24: 18,217,982 | I24: 1,357,642 | J24: 17,716,991 | K24: 0 | L24: 0 | M24: 500,991 | N24: 78.9 | O24: 78.9 | P24: 97.3 | Q24: =SUM(Q25:Q30) -> 4,574 | R24: =SUM(R25:R30) -> 197,278
D25: 취득세분 | E25: 3,619,000 | F25: 3,619,000 | G25: 358,109 | H25: 2,899,356 | I25: 359,652 | J25: 2,894,336 | M25: =H25-J25-L25 -> 5,020 | N25: 80.0 | O25: 80.0 | P25: 99.8 | Q25: 2,624 | R25: 164,055
D26: 등록면허세분 | E26: 1,586,000 | F26: 1,586,000 | G26: 56,577 | H26: 1,153,096 | I26: 56,902 | J26: 1,153,017 | M26: 79 | N26: 72.7 | O26: 72.7 | P26: 100.0 | Q26: 68 | R26: 5,245
D27: 주민세분 | E27: 95,000 | F27: 95,000 | G27: 8 | H27: 124,469 | I27: 2,402 | J27: 99,938 | M27: 24,531 | N27: 105.2 | O27: 105.2 | P27: 80.3 | Q27: 0 | R27: 29
D28: 재산세분 | E28: 3,000,000 | F28: 3,000,000 | G28: 6,543 | H28: 3,807,480 | I28: 216,744 | J28: 3,610,324 | M28: 197,156 | N28: 120.3 | O28: 120.3 | P28: 94.8 | Q28: 410 | R28: 485
D29: 자동차세분 | E29: 5,750,000 | F29: 5,750,000 | G29: 7,532 | H29: 3,493,911 | I29: 20,769 | J29: 3,219,706 | M29: 274,205 | N29: 56.0 | O29: 56.0 | P29: 92.2 | Q29: 1,472 | R29: 27,346
D30: 담배소비세분 | E30: 8,400,000 | F30: 8,400,000 | G30: 701,173 | H30: 6,739,670 | I30: 701,173 | J30: 6,739,670 | M30: 0 | N30: 80.2 | O30: 80.2 | P30: 100.0 | Q30: 0 | R30: 118
B31: 시 군 세 | C31: 소 계 | E31: =SUM(E32,E33,E34,E37:E44) -> 159,400,000 | F31: =SUM(F32,F33,F34,F37:F44) -> 164,291,000 | G31: 8,290,156 | H31: 160,904,517 | I31: 9,737,096 | J31: 157,022,933 | K31: 0 | L31: 5,165 | M31: 3,876,419 | N31: 98.5 | O31: 95.6 | P31: 97.6 | Q31: =SUM(Q32,Q33,Q34,Q37:Q44) -> 469,141 | R31: =SUM(R32,R33,R34,R37:R44) -> 1,006,453
C32: 주 민 세 | E32: 2,900,000 | F32: 2,900,000 | G32: -2,290 | H32: 3,227,410 | I32: 32,259 | J32: 2,954,515 | M32: =H32-J32-L32 -> 272,895 | N32: 101.9 | O32: 101.9 | P32: 91.5 | Q32: 134 | R32: 1,277
C33: 재 산 세 | E33: 25,000,000 | F33: 27,800,000 | G33: 39,701 | H33: 30,299,836 | I33: 1,390,191 | J33: 28,900,897 | M33: =H33-J33-L33 -> 1,398,939 | N33: 115.6 | O33: 104.0 | P33: 95.4 | Q33: 317 | R33: 1,002
C34: 자동 차세 | D34: 소 계 | E34: =SUM(E35:E36) -> 41,300,000 | F34: =SUM(F35:F36) -> 42,391,000 | G34: 2,327,070 | H34: 34,076,495 | I34: 2,371,914 | J34: 33,071,706 | K34: 0 | L34: 0 | M34: 1,004,789 | N34: 80.1 | O34: 78.0 | P34: 97.1 | Q34: =SUM(Q35:Q36) -> 8,694 | R34: =SUM(R35:R36) -> 113,067
D35: 자동차분 | E35: 17,240,000 | F35: 17,200,000 | G35: 25,891 | H35: 12,692,719 | I35: 70,735 | J35: 11,687,930 | M35: =H35-J35-L35 -> 1,004,789 | N35: 67.8 | O35: 68.0 | P35: 92.1 | Q35: 8,694 | R35: 113,067
D36: 주 행 분 | E36: 24,060,000 | F36: 25,191,000 | G36: 2,301,179 | H36: 21,383,776 | I36: 2,301,179 | J36: 21,383,776 | M36: 0 | N36: 88.9 | O36: 84.9 | P36: 100.0
C37: 담배소비세 | E37: 16,200,000 | F37: 16,200,000 | G37: 1,402,346 | H37: 13,479,340 | I37: 1,402,346 | J37: 13,479,340 | M37: 0 | N37: 83.2 | O37: 83.2 | P37: 100.0 | Q37: 0 | R37: 235
C38: 지방소득세 | E38: 74,000,000 | F38: 75,000,000 | G38: 4,523,303 | H38: 79,818,153 | I38: 4,540,360 | J38: 78,613,218 | K38: 0 | L38: 5,165 | M38: 1,199,770 | N38: 106.2 | O38: 104.8 | P38: 98.5 | Q38: 459,996 | R38: 890,872
C39: 주 행 세 | M39: 0
C40: 농업소득세 | M40: 0
C41: 도 축 세 | M41: 0
C42: 종합토지세 | M42: 0
C43: 도시계획세 | G43: 26 | H43: 3,283 | I43: 26 | J43: 3,257 | M43: 26 | P43: 99.2
C44: 사 업 소세 | M44: 0
A45: 과 년 도 | B45: 계 | E45: =SUM(E46:E48) -> 1,730,000 | F45: =SUM(F46:F48) -> 1,730,000 | G45: -9,576 | H45: 11,776,947 | I45: 40,262 | J45: 1,246,064 | K45: 0 | L45: 1,921,879 | M45: 8,609,004 | N45: 72.0 | O45: 72.0 | P45: 10.6 | Q45: =SUM(Q46:Q48) -> 46,473 | R45: =SUM(R46:R48) -> 2,946,772
B46: 도 세 | E46: 430,000 | F46: 430,000 | G46: 7,535 | H46: 3,262,280 | I46: 11,186 | J46: 1,307,129 | K46: 0 | L46: 392,023 | M46: =H46-J46-L46 -> 1,563,128 | N46: 304.0 | O46: 304.0 | P46: 40.1 | Q46: 1,617 | R46: 267,876
B47: 지방교육세 | E47: 300,000 | F47: 300,000 | G47: 1,072 | H47: 1,348,135 | I47: 11,224 | J47: 424,539 | K47: 0 | L47: 91,857 | M47: =H47-J47-L47 -> 831,739 | N47: 141.5 | O47: 141.5 | P47: 31.5 | Q47: 557 | R47: 16,688
B48: 시 군 세 | E48: 1,000,000 | F48: 1,000,000 | G48: -18,183 | H48: 7,166,532 | I48: 17,852 | J48: -485,604 | K48: 0 | L48: 1,437,999 | M48: =H48-J48-L48 -> 6,214,137 | N48: -48.6 | O48: -48.6 | P48: -6.8 | Q48: 44,299 | R48: 2,662,208
